Cogmind - Beta 15 --- EXPLORER MODE // 2025.05.08 @ 07:14:07 Player: Rotpup_ Result: Destroyed by EM-1FY(R) with Subdweller Laser Performance ------------- Evolutions (0) 0 Regions Visited (3) 600 Robots Destroyed (16) 80 Value Destroyed (444) 444 Prototype IDs (0) 0 Alien Tech Used (0) 0 Bonus (0) 0 TOTAL SCORE: 1124 Bonus ------- None Cogmind --------- Core Integrity 0/250 Matter 300/300 Energy 100/100 System Corruption 0% Temperature Cool (6) Movement Treading (400) Ox3 Location -10/Subcaves Parts ------- > --- POWER (1) -------- (None) > --- PROPULSION (3) --- Light Treads > --- UTILITY (2) ------ Huge Storage Unit > --- WEAPON (2) ------- (None) > --- INVENTORY (25) --- Light Ion Engine Improved Heat Sink Large Matter Pod (126) Visual Processing Unit Sensor Array Signal Interpreter Improved Terrain Scanner Terrain Scan Processor Targeting Computer Power Shielding Weapon Shielding Tractor Beam Datajack Datajack Peak State ------------ > --- POWER ------------ Ion Engine > --- PROPULSION ------- Light Treads Light Treads Light Treads > --- UTILITY ---------- Huge Storage Unit Seismic Detector > --- WEAPON ----------- Assault Rifle Light Assault Rifle > --- INVENTORY -------- Ion Engine Light Ion Engine Light Treads Improved Heat Sink Large Matter Pod Structural Scanner Visual Processing Unit Sensor Array Signal Interpreter Terrain Scan Processor Targeting Computer Power Shielding Weapon Shielding Tractor Beam Light Assault Rifle Datajack [Rating: 10] Favorites ----------- Power Ion Engine Engine Ion Engine Propulsion Light Treads Treads Light Treads Utility Seismic Detector Device Seismic Detector Storage Huge Storage Unit Protection Power Shielding Weapon Light Assault Rifle Ballistic Gun Light Assault Rifle Build | -11 -10 -10 -10 ------- Run | Yrd Mat Min Sub Slots Evolved 1 | . 1 . . Power . | . . . . Propulsion 1 | . 1 . . Utility . | . . . . Weapon . | . . . . Parts Attached 16 | 8 5 1 2 Power 3 | 1 1 1 . Engine 3 | 1 1 1 . Core . | . . . . Reactor . | . . . . Propulsion 4 | 2 1 . 1 Treads 4 | 2 1 . 1 Leg . | . . . . Wheel . | . . . . Hover . | . . . . Flight . | . . . . Utility 6 | 3 2 . 1 Device 2 | 1 . . 1 Storage 3 | 1 2 . . Processor . | . . . . Hackware . | . . . . Protection 1 | 1 . . . Artifact . | . . . . Weapon 3 | 2 1 . . Energy Gun . | . . . . Energy Cannon . | . . . . Ballistic Gun 3 | 2 1 . . Ballistic Cannon . | . . . . Launcher . | . . . . Special Weapon . | . . . . Impact Weapon . | . . . . Slashing Weapon . | . . . . Piercing Weapon . | . . . . Special Melee Weapon . | . . . . Unidentified Prototypes . | . . . . Parts Lost 9 | . . . 9 Power 1 | . . . 1 Propulsion 3 | . . . 3 Utility 2 | . . . 2 Weapon 3 | . . . 3 Highest Loss Streak 6 | . . . 6 To Critical Strikes . | . . . . Average Backups 15 | 3 14 18 16 Power 1 | . 1 1 1 Propulsion . | . . 1 . Utility 10 | 1 10 13 12 Weapon . | . 1 1 . Tool/Special . | . . . . Unused Backups 16 | . 2 . 14 Power 1 | . . . 1 Propulsion . | . . . . Utility 12 | . 1 . 11 Weapon 1 | . 1 . . Tool/Special 2 | . . . 2 Average Slot Usage (%) 96 | . 99 100 90 Engine 11 | . 12 12 11 Treads 35 | . 36 37 33 Device 11 | . 12 12 10 Storage 12 | . 12 12 12 Ballistic Gun 23 | . 25 25 21 Peak Build Rating 10 | 7 10 10 10 Average Rating 9 | 4 9 10 9 On Entrance 6 | . 7 10 10 Naked Turns . | . . . . Heaviest Build 89 | 18 89 89 89 Greatest Support 60 | 40 60 60 60 Greatest Overweight (x) 5 | 5 1 1 4 Average Overweight (x) . | . . 1 1 Largest Inventory Capacity 25 | 10 25 25 25 Average Capacity 23 | 9 23 25 25 Most Carried 20 | 7 20 20 18 Average Carried 15 | 3 14 18 16 Final Capacity 25 | 10 25 25 25 Final Carried 19 | 5 19 18 14 Class Distribution -------------------- 100% | Hacker-Mutant Dominant Class ---------------- Hacker-Mutant | -10/Materials Hacker-Mutant | -10/Mines Hacker-Mutant | -10/Subcaves Resources | -11 -10 -10 -10 ----------- Run | Yrd Mat Min Sub Matter Collected 743 | 135 376 89 143 Remotely . | . . . . Salvage Created 585 | . 302 140 143 Parts 33 | . 22 6 5 Haulers Intercepted . | . . . . Recyclers Shooed . | . . . . Parts Field Recycled . | . . . . Retrieved Matter . | . . . . Parts Self-Destructed . | . . . . Prevented . | . . . . Kills | -11 -10 -10 -10 ------- Run | Yrd Mat Min Sub Combat Hostiles Destroyed 11 | . 6 2 3 Guns 11 | . 6 2 3 Classes Destroyed 6 | . 4 1 1 Tunneler 1 | . 1 . . Recycler 1 | . . 1 . Watcher 3 | . 3 . . Swarmer 2 | . 2 . . Grunt 6 | . 4 2 . Subdweller 3 | . . . 3 Best Kill Streak 3 | . 3 2 1 Combat Bots Only 2 | . 2 1 1 Max Kills in Single Turn 1 | . 1 1 1 Gunslinging . | . . . . Exploded . | . . . . Melee . | . . . . Uniques/NPCs Destroyed . | . . . . Combat | -11 -10 -10 -10 -------- Run | Yrd Mat Min Sub Hostile Shots Fired 163 | . 36 19 108 Missed 54 | . 15 6 33 Hits 109 | . 21 13 75 Projectile 109 | . 21 13 75 Critical Strikes 1 | . . . 1 Damage Taken 1229 | . 150 113 966 Core 258 | . 18 30 210 Absorbed by Shields . | . . . . Ignored by Resistances 745 | . 97 70 578 Core Remaining (%) 100 | 100 . . . Volleys Fired 109 | . 42 14 53 Largest 2 | . 2 2 2 Hottest 40 | . 40 40 40 Shots Fired 188 | . 84 28 76 Gun 188 | . 84 28 76 Cannon . | . . . . Launcher . | . . . . Special . | . . . . Kinetic 188 | . 84 28 76 Thermal . | . . . . Explosive . | . . . . Electromagnetic . | . . . . Robot Hit Streak 38 | . 20 20 38 Robot Miss Streak 2 | . 2 1 1 Penetration Max . | . . . . Secondary Targets . | . . . . Shots Hit Robots 160 | . 63 26 71 Core Hits 41 | . 22 7 12 Critical Kills . | . . . . Critical Parts Destroyed . | . . . . Critical Strikes . | . . . . Melee Attacks . | . . . . Impact . | . . . . Slashing . | . . . . Piercing . | . . . . Sneak Attacks . | . . . . Combat Hostiles . | . . . . Follow-up Attacks . | . . . . Damage Inflicted 1199 | . 552 256 391 Guns 1199 | . 552 256 391 Cannons . | . . . . Explosions . | . . . . Melee . | . . . . Ramming . | . . . . Kinetic 1199 | . 552 256 391 Thermal . | . . . . Explosive . | . . . . Electromagnetic . | . . . . Impact . | . . . . Slashing . | . . . . Piercing . | . . . . Highest Corruption . | . . . . Average Corruption . | . . . . Corruption Purged . | . . . . Corruption Blocked . | . . . . Overload Shots . | . . . . Overflow Damage . | . . . . Projectiles . | . . . . Explosions . | . . . . Melee . | . . . . Knockbacks . | . . . . Impact . | . . . . Kinetic . | . . . . Secondary . | . . . . Self-Inflicted Damage . | . . . . Shots . | . . . . Rammed . | . . . . Targets Rammed . | . . . . Kicked . | . . . . Crushed . | . . . . Highest Temperature 24 | . 18 24 . Average Temperature 10 | . 10 10 . Received Heat Transfer 522 | . 99 111 312 Siege Activations . | . . . . Martial Activations . | . . . . Shielding Activations . | . . . . Robots Disrupted . | . . . . Combat Hostiles . | . . . . Robots Corrupted . | . . . . Combat Hostiles . | . . . . Parts Fried . | . . . . Impact Corruptions . | . . . . Robots Melted . | . . . . Combat Hostiles . | . . . . Parts Melted . | . . . . Heat Transferred . | . . . . Parts Sabotaged . | . . . . Parts Stolen . | . . . . Parts Stripped . | . . . . Power Chain Reactions . | . . . . Alert | -11 -10 -10 -10 ------- Run | Yrd Mat Min Sub Maximum Alert Level . | . . . . Low Security (%) 100 | 100 100 100 . Level 1 . | . . . . Level 2 . | . . . . Level 3 . | . . . . Level 4 . | . . . . Level 5 . | . . . . High Security . | . . . . Max Security . | . . . . Peak Influence 42 | . 42 35 . Initial . | . . . . Average 3 | . 4 3 . Influence Increases 250 | . 195 55 . Destroy 0b10 Robot/C 160 | . 120 40 . Destroy 0b10 Robot/NC 25 | . 20 5 . Destroy Leader 46 | . 36 10 . Successful Hack 4 | . 4 . . Lose Combat Pursuer 15 | . 15 . . Influence Decreases 250 | . 195 55 . Time Decay 250 | . 195 55 . Squads Dispatched . | . . . . Investigation . | . . . . Extermination . | . . . . Reinforcement . | . . . . Assault . | . . . . Garrison . | . . . . Intercept . | . . . . Searches Triggered . | . . . . Construction Impeded . | . . . . Haulers Reinforced . | . . . . Active Scanning Responses . | . . . . Cargo Convoy Interrupts . | . . . . Stealth | -11 -10 -10 -10 --------- Run | Yrd Mat Min Sub Distress Signals 1 | . 1 . . Communications Jammed . | . . . . Distress Signals . | . . . . Times Spotted 20 | . 14 2 4 Peak Tracking Total 3 | . 3 2 2 Tactical Retreats 1 | . 1 . . Traps | -11 -10 -10 -10 ------- Run | Yrd Mat Min Sub Traps Triggered 2 | . 2 . . Indirectly . | . . . . Trap Hack Attempts . | . . . . Triggered . | . . . . Disarmed 4 | . 4 . . Reprogrammed . | . . . . Reused . | . . . . Traps Extracted . | . . . . Installed . | . . . . Triggered . | . . . . Machines | -11 -10 -10 -10 ---------- Run | Yrd Mat Min Sub Machines Disabled . | . . . . Max in Single Turn . | . . . . Machines Repaired . | . . . . Machines Dismantled . | . . . . Machines Sabotaged . | . . . . Overloaded Fab Kills . | . . . . Hacking | -11 -10 -10 -10 --------- Run | Yrd Mat Min Sub Machines Accessed 3 | . 3 . . Terminals 3 | . 3 . . Fabricators . | . . . . Repair Stations . | . . . . Recycling Units . | . . . . Scanalyzers . | . . . . Garrison Access . | . . . . Total Hacks 9 | . 9 . . Successful 5 | . 5 . . Failed 4 | . 4 . . Catastrophic . | . . . . Database Lockouts . | . . . . Manual 9 | . 9 . . Terminals 9 | . 9 . . Fabricators . | . . . . Repair Stations . | . . . . Recycling Units . | . . . . Scanalyzers . | . . . . Garrison Access . | . . . . Terminal Hacks 2 | . 2 . . Robot Analysis 1 | . 1 . . Disarm Traps 1 | . 1 . . Fabricator Hacks . | . . . . Repair Station Hacks . | . . . . Recycling Unit Hacks . | . . . . Scanalyzer . | . . . . Garrison Access Hacks . | . . . . Unauthorized Hacks 3 | . 3 . . Terminals 3 | . 3 . . Botnet 3 | . 3 . . Fabricators . | . . . . Repair Stations . | . . . . Recycling Units . | . . . . Scanalyzers . | . . . . Garrison Access . | . . . . Data Cores Recovered . | . . . . Used . | . . . . Hacking Detections 2 | . 2 . . Full Trace Events 1 | . 1 . . Feedback Events . | . . . . Feedback Blocked . | . . . . Robot Schematics Acquired . | . . . . Robots Built . | . . . . Authchips . | . . . . Time . | . . . . Total Robot Build Rating . | . . . . Part Schematics Acquired . | . . . . Parts Built . | . . . . Authchips . | . . . . Time . | . . . . Total Part Build Rating . | . . . . Parts Repaired . | . . . . Time . | . . . . Parts Recycled . | . . . . Recycled Matter . | . . . . Retrieved Matter . | . . . . Retrieved Components . | . . . . Parts Scanalyzed . | . . . . Part Schematics Acquired . | . . . . Parts Damaged . | . . . . Bothacking | -11 -10 -10 -10 ------------ Run | Yrd Mat Min Sub Used RIF Installer . | . . . . Robots Hacked . | . . . . Non-combat . | . . . . Combat . | . . . . Robot Hacks Applied . | . . . . Relay Couplers Released . | . . . . Fabnet Peak Effective % . | . . . . Robots Rewired . | . . . . Allies Hacked . | . . . . Hacks Repelled . | . . . . Allies | -11 -10 -10 -10 -------- Run | Yrd Mat Min Sub Total Allies . | . . . . Largest Group . | . . . . Highest-Rated Group . | . . . . Highest-Rated Ally . | . . . . Total Orders . | . . . . Ally Attacks . | . . . . Total Damage . | . . . . Kills . | . . . . Allies Corrupted . | . . . . Allies Melted . | . . . . Intel | -11 -10 -10 -10 ------- Run | Yrd Mat Min Sub Active Infowar (turns) 1974 | 23 1010 377 564 Structural 167 | . . . 167 Seismic 1807 | 23 1010 377 397 Robot Analysis Total 1 | . 1 . . Derelict Logs Recovered . | . . . . Drone Launches . | . . . . Drone Recoveries . | . . . . Exploration | -11 -10 -10 -10 ------------- Run | Yrd Mat Min Sub Turns Passed 2129 | 118 1010 377 624 Spaces Moved 803 | 56 407 140 200 Core 17 | 17 . . . Treads 786 | 39 407 140 200 Legs . | . . . . Wheels . | . . . . Hover . | . . . . Flight . | . . . . Fastest Speed 50 | 50 160 240 240 Average Speed 224 | 175 212 240 249 Slowest Speed 480 | 300 240 240 480 Overloaded Moves . | . . . . Propulsion Burnouts . | . . . . Robots Hopped . | . . . . Potential Cave-ins . | . . . . Cave-ins Triggered . | . . . . Exploration Rate (%) 30 | 5 66 38 14 Regions Visited 3 Branch Regions 2 Pre-discovered Areas . | . . . . Known Exits Taken 3 | 1 1 1 . Unknown Exits Taken . | . . . . Scrap Searched . | . . . . Spaces Dug . | . . . . Terrain Destroyed . | . . . . Melee . | . . . . Projectile . | . . . . AOE . | . . . . Terrain Rammed . | . . . . Walls Destroyed . | . . . . Machines Disabled . | . . . . Actions | -11 -10 -10 -10 --------- Run | Yrd Mat Min Sub Total 976 | 75 483 157 261 Wait 7 | . 3 . 4 Move 800 | 55 406 139 200 Hop . | . . . . Pick Up 34 | 12 21 1 . Fast Attach . | . . . . Attach 13 | 7 3 . 3 Detach . | . . . . Swap 6 | 1 4 1 . Drop 7 | . 4 2 1 Fire 109 | . 42 14 53 Melee . | . . . . Ram . | . . . . Kick . | . . . . Crush . | . . . . Escape Stasis . | . . . . Rewire . | . . . . Trap . | . . . . Miscellaneous . | . . . . Route ------- -11/Scrapyard -10/Materials (discovered 4 exits: *Mat x2 / *Min x2) -10/Mines -10/Subcaves History --------- Turn | Location | Event 34 | -11/Scrapyard | Identified exit to Materials 34 | -11/Scrapyard | Discovered exit to Materials (range 16) 119 | -11/Scrapyard | Entered Materials 119 | -10/Materials | Evolved 1 slot: Propulsion x1 303 | -10/Materials | Build established: Hacker-Mutant 318 | -10/Materials | Identified exit to Mines 318 | -10/Materials | Discovered exit to Mines (range 13) 813 | -10/Materials | Identified exit to Materials 813 | -10/Materials | Discovered exit to Materials (range 14) 916 | -10/Materials | Discovered exit to Mines (range 16) 1098 | -10/Materials | Discovered exit to Materials (range 16) 1129 | -10/Materials | Entered Mines 1484 | -10/Mines | Identified exit to Subcaves 1484 | -10/Mines | Discovered exit to Subcaves (range 10) 1506 | -10/Mines | Entered Subcaves 1575 | -10/Subcaves | Shifting Twisted Machinery released Mak. Power Source 2067 | -10/Subcaves | Core integrity fell below 50% 2105 | -10/Subcaves | Core integrity fell below 20% 2130 | -10/Subcaves | Destroyed by EM-1FY(R) with Subdweller Laser Last Messages --------------- 01862_ Acquired 48 matter. 01866_ Subatomizers dissect the Disposable Heat Sink. 01903_ Seismic Detector destroyed. 01907_ Assault Rifle destroyed. 01944_ Lgt. Treads destroyed. 01950_ 2S-K1P(R) destroyed. 01954_ Dropped Structural Scanner. 01972_ Acquired 59 matter. 01982_ Subatomizers dissect the Disposable Heat Sink. 02019_ Lgt. Assault Rifle destroyed. 02045_ Lgt. Treads destroyed. 02080_ Ion Engine destroyed. 02086_ 49-BOB(R) destroyed. 02090_ EM-1FY(R) affixes Scrap Shield Fragment to Scrap Shield. 02098_ Lgt. Assault Rifle destroyed. 02108_ Acquired 36 matter. 02120_ Structural Scanner destroyed. Map ----- +----------------------------------------------------+ | ???????????????# ## # | | ???????????????# ## # | | ??????????????# ## " ## | | ??????????????#### " ### """ ##### | | ?????????????????# " ??# """ " ##???#### | | ?????????????????# "" ??## * " #???????#### | | ?????????????????# """ ??##"" ?????????## | | ????????????????# "?"" ####" ?????????## | | ????????????????# ?" "" ### ?????????# | | ????????????????##??## "" ### #### ???????## | | ????????????????????## " ### ##???# #?????## | | ???????????????????### #?###??????###?????# | | ???????????????????### ??????????????????# | | ??????????????????? # # ????????????######## | | ??????????????????? ??######????# #### | | ????????????????????? ########### | | ????????????????????? ## ##### ####### | | ??????## ????????????## #### ## ### | | ????#### ????????????## ## #### | | ????#### #"?? " ???## ###### # | | ????##"" ###"""" ???## R ##### ## | | ???????" "##"""" ????## ! ## ##? | | ???????"#""##""##"???### ### ###?? | | ???????##" ##" ###???#### ########## #####??? | | ??????#### ! " ##????### #####??###########???? | | ??????### " ######### @ ###??????????????????? | | ??????## ########### ###???????????????????? | | ??????## #"" # #!#* ###???????????????????? | | ??????## "" = &" & & ##???????????????????? | | ??????### "# #&[ # ### ##???????????????????? | | ??????### ""### " ##### ##???????????????????? | | ???????## "#### ####### ##???????????????????? | | ???????######### ####### ###???????????????????? | | ???????#####?######"?### ###??????????????????? | | ??????????????##### ## ####??????????????????? | | ????????????????### ## ##??????????????????? | | ???????????????### ##??????????????????? | | ???????????????## ##??????????????????? | | ???????????????## ##??????????????????? | | ???????????????## " ##??????????????????? | | ???????????????## """""""" ##??????????????????? | | ???????????????### """"" ##??????????????????? | | ???????????????#### " "##??????????????????? | | ????????????????### """" " ??????????????????? | | ?????????????????## ##### "??????????????????? | | ?????????????????## ??? #####" ?????????????????? | | ??????????????????????? ?????? ?????????????????? | | ???????????????????????"?????????????????????????? | | ??????????????????????? ?????????????????????????? | | ?????????????????????????????????????????????????? | +----------------------------------------------------+ Best States ------------- Heat Dissipation 25 Energy Generation 10 Energy Capacity 250 Matter Stores 300 Matter Capacity 300 Sight Range 16 Terrain Scan Density 10 Resistance: KI 35 Resistance: TH 35 Resistance: EX 35 Resistance: EM 35 Resistance: I 35 Resistance: S 35 Resistance: P 35 Power Shielding 33 Evasion (%) 40 Recoil Reduction 3 Offensive Hacking 20 Item Schematics ----------------- None Robot Schematics ------------------ None Fabricated ------------ Nothing Repaired ---------- Nothing Alien Tech Used ----------------- None Achievements -------------- None Challenges ------------ None Game ------ Seed IonMiniBlaster Manual? 0 Play Time 00:13:48 Cumulative 21.9 hours Start 2025.05.08 @ 07:02:15 End 2025.05.08 @ 07:14:07 Sessions 1 Manual Loads 0 Difficulty Explorer Special Mode None Game No. 44 Rogue 35 Adventurer 7 Explorer 2 Win Type - Total 0 Types 0/0/0/0/0/0/0/0/0/0 Lore% 10 Gallery% 25 Achievement% 24 Wizard Run 0 Options --------- Layout 1 ASCII 0 Keyboard 0 Movement Mouse Keybinds 0 Fullscreen 2 Font 24/Smallcaps Map View 50x35 Zoom Use 0% Tactical HUD 1 Map Filters NONE Filters NONE Steam 1 RUN: 82957ec3-3341-400b-94fa-e1d4f583ed02